Cogmind - Beta 15 @@@ ROGUE MODE // 2025.05.23 @ 10:41:50 Player: Man of Plasma Result: Self-destructed Performance ------------- Evolutions (1) 500 Regions Visited (3) 600 Robots Destroyed (16) 80 Value Destroyed (442) 442 Prototype IDs (3) 60 Alien Tech Used (0) 0 Bonus (0) 0 TOTAL SCORE: 1682 Bonus ------- None Cogmind --------- Core Integrity 298/400 Matter 254/300 Energy 111/125 System Corruption 0% Temperature Hot (260) Movement Core (150) Ox2 Location -9/Materials Parts ------- > --- POWER (1) -------- Light Ion Engine > --- PROPULSION (3) --- (None) > --- UTILITY (3) ------ Medium Storage Unit Weight Redist. System > --- WEAPON (2) ------- Particle Gun Beam Cannon > --- INVENTORY (10) --- Flight Unit Improved Heat Sink Small Storage Unit Grenade Launcher Improved Datajack Mining Laser Peak State ------------ > --- POWER ------------ Light Ion Engine > --- PROPULSION ------- Flight Unit Flight Unit Flight Unit > --- UTILITY ---------- Medium Storage Unit Weight Redist. System Propulsion Shielding > --- WEAPON ----------- Beam Cannon Heavy Assault Rifle > --- INVENTORY -------- Flight Unit Improved Heat Sink Small Storage Unit Particle Gun Grenade Launcher Improved Datajack Mining Laser [Rating: 12] Favorites ----------- Power Light Ion Engine Engine Light Ion Engine Power Core Light Nuclear Core Propulsion Aluminum Leg Leg Aluminum Leg Flight Unit Flight Unit Utility Medium Storage Unit Device Weight Redist. System Storage Medium Storage Unit Protection Power Shielding Weapon Beam Cannon Energy Gun Small Laser Energy Cannon Beam Cannon Ballistic Gun Light Assault Rifle Ballistic Cannon Light Cannon Build | -11 -10 -10 -9 ------- Run | Yrd Mat Min Mat Slots Evolved 2 | . . . 2 Power . | . . . . Propulsion 1 | . . . 1 Utility 1 | . . . 1 Weapon . | . . . . Parts Attached 24 | 6 10 4 4 Power 4 | 1 3 . . Engine 3 | 1 2 . . Core 1 | . 1 . . Reactor . | . . . . Propulsion 6 | 2 1 2 1 Treads . | . . . . Leg 3 | 2 1 . . Wheel . | . . . . Hover . | . . . . Flight 3 | . . 2 1 Utility 6 | 1 3 1 1 Device 1 | . . 1 . Storage 2 | 1 1 . . Processor . | . . . . Hackware . | . . . . Protection 3 | . 2 . 1 Artifact . | . . . . Weapon 8 | 2 3 1 2 Energy Gun 2 | 1 . . 1 Energy Cannon 3 | . 2 1 . Ballistic Gun 2 | 1 . . 1 Ballistic Cannon 1 | . 1 . . Launcher . | . . . . Special Weapon . | . . . . Impact Weapon . | . . . . Slashing Weapon . | . . . . Piercing Weapon . | . . . . Special Melee Weapon . | . . . . Unidentified Prototypes . | . . . . Parts Lost 6 | . 1 . 5 Power 1 | . 1 . . Propulsion 3 | . . . 3 Utility 1 | . . . 1 Weapon 1 | . . . 1 Highest Loss Streak 5 | . 1 . 5 To Critical Strikes . | . . . . Average Backups 7 | . 7 9 7 Power . | . . . . Propulsion 2 | . 3 2 1 Utility 2 | . 2 2 2 Weapon 2 | . 1 4 3 Tool/Special . | . . . . Unused Backups 4 | . . . 4 Power . | . . . . Propulsion 1 | . . . 1 Utility 1 | . . . 1 Weapon 1 | . . . 1 Tool/Special 1 | . . . 1 Average Slot Usage (%) 93 | . 95 81 87 Engine 10 | . 9 14 11 Core 1 | . 2 . . Leg 22 | . 28 5 . Flight 5 | . . 22 30 Device 2 | . . 12 11 Storage 13 | . 14 14 11 Protection 11 | . 12 1 10 Energy Cannon 12 | . 13 7 11 Ballistic Gun 4 | . 5 . 3 Ballistic Cannon 6 | . 8 2 . Peak Build Rating 12 | 6 10 9 12 Average Rating 7 | 4 7 7 10 On Entrance 5 | . 6 7 8 Naked Turns . | . . . . Heaviest Build 22 | 10 22 17 17 Greatest Support 20 | 20 20 20 18 Greatest Overweight (x) 1 | . 1 1 . Average Overweight (x) . | . . . . Largest Inventory Capacity 10 | 8 10 10 10 Average Capacity 9 | 6 9 10 10 Most Carried 10 | 1 10 10 8 Average Carried 7 | . 7 9 7 Final Capacity 10 | 8 10 10 10 Final Carried 10 | 1 10 9 6 Class Distribution -------------------- 100% | Mutant Dominant Class ---------------- Mutant | -10/Materials Mutant | -10/Mines Mutant | -9/Materials Resources | -11 -10 -10 -9 ----------- Run | Yrd Mat Min Mat Matter Collected 458 | 241 158 59 . Remotely . | . . . . Salvage Created 633 | . 539 42 52 Parts 35 | . 32 1 2 Haulers Intercepted 2 | . 2 . . Recyclers Shooed . | . . . . Parts Field Recycled . | . . . . Retrieved Matter . | . . . . Parts Self-Destructed . | . . . . Prevented . | . . . . Kills | -11 -10 -10 -9 ------- Run | Yrd Mat Min Mat Combat Hostiles Destroyed 12 | . 11 . 1 Guns 3 | . 3 . . Cannons 9 | . 8 . 1 Classes Destroyed 5 | . 4 . 1 Hauler 2 | . 2 . . Watcher 2 | . 2 . . Swarmer 3 | . 3 . . Grunt 8 | . 8 . . Sentry 1 | . . . 1 Best Kill Streak 3 | . 3 . 1 Combat Bots Only 3 | . 3 . 1 Max Kills in Single Turn 1 | . 1 . 1 Gunslinging . | . . . . Exploded . | . . . . Melee . | . . . . Uniques/NPCs Destroyed . | . . . . Combat | -11 -10 -10 -9 -------- Run | Yrd Mat Min Mat Hostile Shots Fired 119 | . 87 . 32 Missed 27 | . 21 . 6 Hits 92 | . 66 . 26 Projectile 92 | . 66 . 26 Critical Strikes 2 | . 1 . 1 Damage Taken 1171 | . 782 . 389 Core 298 | . 196 . 102 Absorbed by Shields . | . . . . Redirected to Shielding 76 | . 52 . 24 Core Remaining (%) 60 | 100 . 21 . Volleys Fired 59 | . 45 5 9 Largest 2 | . 2 1 2 Hottest 90 | . 90 60 83 Shots Fired 111 | . 90 5 16 Gun 46 | . 39 . 7 Cannon 65 | . 51 5 9 Launcher . | . . . . Special . | . . . . Kinetic 52 | . 45 . 7 Thermal 59 | . 45 5 9 Explosive . | . . . . Electromagnetic . | . . . . Robot Hit Streak 14 | . 10 4 14 Robot Miss Streak 6 | . 6 1 1 Penetration Max . | . . . . Secondary Targets . | . . . . Shots Hit Robots 74 | . 58 4 12 Core Hits 27 | . 24 1 2 Critical Kills . | . . . . Critical Parts Destroyed . | . . . . Critical Strikes . | . . . . Melee Attacks . | . . . . Impact . | . . . . Slashing . | . . . . Piercing . | . . . . Sneak Attacks . | . . . . Combat Hostiles . | . . . . Follow-up Attacks . | . . . . Damage Inflicted 1094 | . 812 70 212 Guns 265 | . 191 . 74 Cannons 829 | . 621 70 138 Explosions . | . . . . Melee . | . . . . Ramming . | . . . . Kinetic 347 | . 273 . 74 Thermal 747 | . 539 70 138 Explosive . | . . . . Electromagnetic . | . . . . Impact . | . . . . Slashing . | . . . . Piercing . | . . . . Highest Corruption . | . . . . Average Corruption . | . . . . Corruption Purged . | . . . . Corruption Blocked . | . . . . Overload Shots . | . . . . Overflow Damage 4 | . 4 . . Projectiles 4 | . 4 . . Explosions . | . . . . Melee . | . . . . Knockbacks 2 | . 2 . . Impact . | . . . . Kinetic 2 | . 2 . . Secondary . | . . . . Self-Inflicted Damage . | . . . . Shots . | . . . . Rammed . | . . . . Targets Rammed . | . . . . Kicked . | . . . . Crushed . | . . . . Highest Temperature 273 | . 246 120 273 Average Temperature 90 | . 87 64 129 Received Heat Transfer 531 | . 405 . 126 Effects 2 | . . . 2 Interference 2 | . . . 2 Siege Activations . | . . . . Martial Activations . | . . . . Shielding Activations . | . . . . Robots Disrupted . | . . . . Combat Hostiles . | . . . . Robots Corrupted . | . . . . Combat Hostiles . | . . . . Parts Fried . | . . . . Impact Corruptions . | . . . . Robots Melted . | . . . . Combat Hostiles . | . . . . Parts Melted 2 | . 2 . . Heat Transferred 1591 | . 1147 148 296 Parts Sabotaged . | . . . . Parts Stolen . | . . . . Parts Stripped . | . . . . Power Chain Reactions . | . . . . Alert | -11 -10 -10 -9 ------- Run | Yrd Mat Min Mat Maximum Alert Level . | . . . . Low Security (%) 100 | 100 100 100 100 Level 1 . | . . . . Level 2 . | . . . . Level 3 . | . . . . Level 4 . | . . . . Level 5 . | . . . . High Security . | . . . . Max Security . | . . . . Peak Influence 100 | . 100 5 30 Initial . | . . . . Average 34 | . 46 . 4 Influence Increases 396 | . 346 5 45 Destroy 0b10 Robot/C 240 | . 220 . 20 Destroy 0b10 Robot/NC 25 | . 20 5 . Destroy Leader 58 | . 48 . 10 Trap Triggered on 0b10 10 | . 10 . . Successful Hack 18 | . 18 . . Disable Machine 30 | . 30 . . Partial Spotted 15 | . . . 15 Influence Decreases 396 | . 343 8 45 Entered New Map 3 | . . 3 . Time Decay 363 | . 333 5 25 Lost Part 30 | . 10 . 20 Squads Dispatched 3 | . 3 . . Investigation 2 | . 2 . . Extermination . | . . . . Reinforcement 1 | . 1 . . Assault . | . . . . Garrison . | . . . . Intercept . | . . . . Searches Triggered . | . . . . Construction Impeded . | . . . . Haulers Reinforced . | . . . . Active Scanning Responses . | . . . . Cargo Convoy Interrupts . | . . . . Stealth | -11 -10 -10 -9 --------- Run | Yrd Mat Min Mat Distress Signals 4 | . 4 . . Communications Jammed . | . . . . Distress Signals . | . . . . Times Spotted 25 | . 22 . 3 Peak Tracking Total 4 | . 4 . 3 Tactical Retreats . | . . . . Traps | -11 -10 -10 -9 ------- Run | Yrd Mat Min Mat Traps Triggered . | . . . . Indirectly . | . . . . Trap Hack Attempts . | . . . . Triggered . | . . . . Disarmed . | . . . . Reprogrammed 4 | . 4 . . Reused 1 | . 1 . . Traps Extracted . | . . . . Installed . | . . . . Triggered 1 | . 1 . . Machines | -11 -10 -10 -9 ---------- Run | Yrd Mat Min Mat Machines Disabled 2 | . 2 . . Max in Single Turn 1 | . 1 . . Machines Repaired . | . . . . Machines Dismantled . | . . . . Machines Sabotaged . | . . . . Overloaded Fab Kills . | . . . . Hacking | -11 -10 -10 -9 --------- Run | Yrd Mat Min Mat Machines Accessed 7 | . 6 . 1 Terminals 5 | . 5 . . Fabricators . | . . . . Repair Stations . | . . . . Recycling Units 2 | . 1 . 1 Scanalyzers . | . . . . Garrison Access . | . . . . Total Hacks 11 | . 9 . 2 Successful 8 | . 7 . 1 Failed 3 | . 2 . 1 Catastrophic 1 | . 1 . . Database Lockouts . | . . . . Manual 4 | . 4 . . Terminals 8 | . 8 . . Fabricators . | . . . . Repair Stations . | . . . . Recycling Units 3 | . 1 . 2 Scanalyzers . | . . . . Garrison Access . | . . . . Terminal Hacks 6 | . 6 . . Prototype ID Bank 2 | . 2 . . Branch Access Points 1 | . 1 . . Alert Level 1 | . 1 . . Locate Traps 1 | . 1 . . Reprogram Traps 1 | . 1 . . Fabricator Hacks . | . . . . Repair Station Hacks . | . . . . Recycling Unit Hacks 2 | . 1 . 1 Retrieve Components 2 | . 1 . 1 Scanalyzer . | . . . . Garrison Access Hacks . | . . . . Unauthorized Hacks . | . . . . Terminals . | . . . . Fabricators . | . . . . Repair Stations . | . . . . Recycling Units . | . . . . Scanalyzers . | . . . . Garrison Access . | . . . . Data Cores Recovered . | . . . . Used . | . . . . Hacking Detections 5 | . 4 . 1 Full Trace Events 1 | . 1 . . Feedback Events . | . . . . Feedback Blocked . | . . . . Robot Schematics Acquired . | . . . . Robots Built . | . . . . Authchips . | . . . . Time . | . . . . Total Robot Build Rating . | . . . . Part Schematics Acquired . | . . . . Parts Built . | . . . . Authchips . | . . . . Time . | . . . . Total Part Build Rating . | . . . . Parts Repaired . | . . . . Time . | . . . . Parts Recycled . | . . . . Recycled Matter . | . . . . Retrieved Matter . | . . . . Retrieved Components 10 | . 9 . 1 Parts Scanalyzed . | . . . . Part Schematics Acquired . | . . . . Parts Damaged . | . . . . Bothacking | -11 -10 -10 -9 ------------ Run | Yrd Mat Min Mat Used RIF Installer . | . . . . Robots Hacked . | . . . . Non-combat . | . . . . Combat . | . . . . Robot Hacks Applied . | . . . . Relay Couplers Released . | . . . . Fabnet Peak Effective % . | . . . . Robots Rewired . | . . . . Allies Hacked . | . . . . Hacks Repelled . | . . . . Allies | -11 -10 -10 -9 -------- Run | Yrd Mat Min Mat Total Allies . | . . . . Largest Group . | . . . . Highest-Rated Group . | . . . . Highest-Rated Ally . | . . . . Total Orders . | . . . . Ally Attacks . | . . . . Total Damage . | . . . . Kills . | . . . . Allies Corrupted . | . . . . Allies Melted . | . . . . Intel | -11 -10 -10 -9 ------- Run | Yrd Mat Min Mat Active Infowar (turns) . | . . . . Robot Analysis Total . | . . . . Derelict Logs Recovered . | . . . . Drone Launches . | . . . . Drone Recoveries . | . . . . Exploration | -11 -10 -10 -9 ------------- Run | Yrd Mat Min Mat Turns Passed 1184 | 59 880 144 101 Spaces Moved 821 | 45 472 144 160 Core 6 | 6 . . . Treads . | . . . . Legs 526 | 39 472 15 . Wheels . | . . . . Hover . | . . . . Flight 289 | . . 129 160 Fastest Speed 34 | 50 120 37 34 Average Speed 113 | 110 151 75 34 Slowest Speed 190 | 120 190 120 34 Overloaded Moves . | . . . . Propulsion Burnouts . | . . . . Robots Hopped . | . . . . Potential Cave-ins . | . . . . Cave-ins Triggered . | . . . . Exploration Rate (%) 32 | 4 71 39 15 Regions Visited 3 Branch Regions 1 Pre-discovered Areas . | . . . . Known Exits Taken 1 | . 1 . . Unknown Exits Taken 2 | 1 . 1 . Scrap Searched 2 | . . 2 . Spaces Dug . | . . . . Terrain Destroyed . | . . . . Melee . | . . . . Projectile . | . . . . AOE . | . . . . Terrain Rammed . | . . . . Walls Destroyed . | . . . . Machines Disabled . | . . . . Actions | -11 -10 -10 -9 --------- Run | Yrd Mat Min Mat Total 969 | 51 553 174 191 Wait 37 | . 11 11 15 Move 818 | 44 471 143 160 Hop . | . . . . Pick Up 15 | 1 10 2 2 Fast Attach 10 | 6 3 1 . Attach 5 | . . 1 4 Detach 2 | . 1 1 . Swap 10 | . 7 3 . Drop 10 | . 5 4 1 Fire 59 | . 45 5 9 Melee . | . . . . Ram . | . . . . Kick . | . . . . Crush . | . . . . Escape Stasis . | . . . . Rewire 3 | . . 3 . Trap . | . . . . Miscellaneous . | . . . . Route ------- -11/Scrapyard -10/Materials (discovered 2 exits: *Mat / *Min) -10/Mines (discovered 2 exits: *Mat x2) -9/Materials History --------- Turn | Location | Event 7 | -11/Scrapyard | Discovered new exit (range 15) 60 | -11/Scrapyard | Entered Materials 129 | -10/Materials | Identified exit to Mines 329 | -10/Materials | Build established: Mutant 364 | -10/Materials | Core integrity fell below 50% 566 | -10/Materials | Discovered new exit (range 16) 940 | -10/Materials | Entered Mines 956 | -10/Mines | Found DCF Scrap (9 items) 984 | -10/Mines | Discovered new exit (range 7) 1073 | -10/Mines | Discovered new exit (range 10) 1084 | -10/Mines | Entered Materials 1084 | -9/Materials | Evolved 2 slots: Propulsion x1, Utility x1 1185 | -9/Materials | Self-destructed Last Messages --------------- LOCATION=UNKNOWN GOAL=ESCAPE 01092_ Connecting with Recycling Unit... 01092_ Current location identified: Materials >>Retrieve(Components) Retrieving 1 components... Imp. Ion Engine 01093_ Dropped Lgt. Cannon. 01094_ Acquired Hvy. Assault Rifle. 01121_ T-07 Excavator is excavating. 01126_ K-01 Serf collects debris. 01134_ Acquired Imp. Datajack. 01167_ Flight Unit destroyed. 01171_ Y-45 Defender destroyed. 01180_ Hvy. Assault Rifle destroyed. 01182_ Critical hit (Burn: +37). 01183_ Overheating: System interference. 01183_ Beam Cannon temporarily disabled. 01185_ Propulsion Shielding destroyed. 01185_ Flight Unit destroyed. Map ----- +----------------------------------------------------+ | ????????????????????????# +???????????????? | | ????????????????????????# #???????????????? | | ????????????????????????# #???????????????? | | ????????????????????????# #???????????????? | | ????????????????????????# #???????????????? | | ??????????????????####### #???????????????? | | ??????????????????? #???????????????? | | ????????????????????? #???????????????? | | ??????????????????????? #???????????????? | | ??????????????########### #???????????????? | | ??????????????# ] # #####???????????? | | ??????????????# """ # #???????????? | | ??????????????# """ + #???????????? | | ??????????????# * ! """ # #???????????? | | ??????????????# # ###???????????? | | ??????????????# "Y" # #?????????????? | | ??????????????# """ + #?????????????? | | ??????????????# #### #?????????????? | | ???????##################??# #?????????????? | | ???????#[[[[//#????????????# #?????????????? | | ???????#[[[[/ #????????????# #?????????????? | | ???????# #????????????# #?????????????? | | ???????## ##????????????# #?????????????? | | ????????# ############### #?????????????? | | ????????# Y ########??????? | | ????????# @!%Y + #??????? | | ????????# ############### ## #??????? | | ????######+################# ## #??????? | | ????# # ## ## #??????? | | ????# """ """ # # # #??????? | | ????# """ """ # # # #??????? | | ????# """ """ # # " + #??????? | | ????# """ """ # """ """ # # #??????? | | ????# """ """ # """ """ ## ## #??????? | | ????# / # """ """ ## ## #??????? | | ????############# ## ## #??????? | | ????????????????#####+###### ## #??????? | | ??????????????????# ##### ########??????? | | ??????????????????# " #?????????????? | | ??????????????????# #?????????????? | | ??????????????????# ##### #?????????????? | | ??????????????????######???# #??????#??????? | | ??????????????????????###### ### #??????? | | ??????????????? #??????? | | ??????????????? ^ ! +??????? | | ??????????????? ############## #??????? | | ?????????????????????????????????? ##??????? | | ??????????????????????????????????? #???????? | | ???????????????????????????????????? #??????? | | ?????????????????????????????????????#??????? | +----------------------------------------------------+ Best States ------------- Heat Dissipation 28 Energy Generation 14 Energy Capacity 250 Matter Stores 300 Matter Capacity 300 Sight Range 16 Terrain Scan Density 10 Additional Mass Support 6 Power Shielding 33 Propulsion Shielding 33 Evasion (%) 63 Item Schematics ----------------- None Robot Schematics ------------------ None Fabricated ------------ Nothing Repaired ---------- Nothing Alien Tech Used ----------------- None Achievements -------------- None Challenges ------------ None Game ------ Seed ThiefFireBattery Manual? 0 Play Time 00:18:03 Cumulative 19.2 hours Start 2025.05.23 @ 10:23:44 End 2025.05.23 @ 10:41:50 Sessions 1 Manual Loads 0 Difficulty Rogue Special Mode None Game No. 30 Rogue 30 Adventurer 0 Explorer 0 Win Type - Total 0 Types 0/0/0/0/0/0/0/0/0/0 Lore% 15 Gallery% 25 Achievement% 23 Wizard Run 0 Options --------- Layout 1 ASCII 0 Keyboard 0 Movement Numpad Keybinds 0 Fullscreen 1 Font 24/Smallcaps Map View 50x35 Zoom Use 0% Tactical HUD 1 Map Filters NONE Filters NONE Steam 1 RUN: ee0ded72-4e08-4370-8589-e5bbb3e007d4